bitfinex/quotes_ETHUSD_20260119
["timestamp","ask_amount","ask_price","bid_price","bid_amount"]
[1768792493426,12.57908382,3208.1,3207.3,13.12513416]
[1768792494058,15.69622361,3208.1,3207.3,3.63187406]
[1768792494259,15.69622361,3208.1,3207.4,12.61113416]
[1768792494869,1.5995462,3208.2,3207.4,12.61113416]
[1768792495046,12.57908382,3208.2,3207.4,12.61113416]
[1768792496346,15.69612875,3208.2,3207.4,12.61113416]
[1768792496746,15.69612875,3208.2,3207.4,15.72890938]
[1768792497577,15.69612875,3208.2,3207.4,12.61113416]
[1768792499877,15.69612875,3208.2,3207.4,15.72891954]
[1768792500048,12.57908382,3208.2,3207.5,12.61113416]
[1768792500244,12.57908382,3208.4,3207.5,12.61113416]
[1768792500588,12.57908382,3208.4,3207.6,12.61113416]
[1768792500762,12.57908382,3208.4,3207.8,12.61113416]
[1768792501292,14.14876801,3208.4,3207.8,12.61113416]
[1768792501781,0.001,3208.5,3207.9,12.61113416]
[1768792502682,0.001,3208.5,3208.2,12.61113416]
[1768792502885,0.001,3208.8,3208.3,13.12513416]
[1768792503861,0.001,3208.8,3208.5,12.61113416]
[1768792504987,12.57908382,3209.2,3208.5,12.61113416]
[1768792505193,3.30598014,3209.4,3208.5,12.61113416]
[1768792505369,5.83384401,3210.2,3208.3,6.74779269]
[1768792505370,12.57908382,3209.5,3208.7,12.61113416]
[1768792505574,15.69454272,3209.8,3208.9,12.61113416]
[1768792505895,12.57908382,3209.6,3208.9,12.61113416]
[1768792506364,15.69474553,3209.6,3208.9,12.61113416]
[1768792508496,12.58008382,3209.3,3208.8,0.514]
[1768792512408,12.58008382,3209.3,3208.8,13.12513416]
[1768792513975,0.001,3209.3,3208.8,13.12513416]
[1768792514601,12.58008382,3209.3,3208.8,13.12513416]
[1768792522632,0.001,3209.3,3208.9,11.90073188]
[1768792524019,15.20908809,3209.8,3209.0,11.90073188]
[1768792524319,12.09357789,3209.7,3209.0,11.90073188]
[1768792524484,12.09357789,3209.6,3209.1,11.90073188]
[1768792524688,12.09357789,3209.6,3209.2,0.514]
[1768792526820,12.09357789,3210.1,3209.3,11.90073188]
[1768792527022,6.23014142,3210.2,3209.3,11.90073188]
[1768792527023,13.92594982,3210.0,3209.3,11.90073188]
[1768792527187,12.09357789,3210.0,3209.3,11.90073188]
[1768792528942,15.20884998,3210.0,3209.3,11.90073188]
[1768792529426,12.09357789,3210.0,3209.4,11.90073188]
[1768792531015,15.20888441,3210.0,3209.4,11.90073188]
[1768792532206,0.001,3209.7,3209.4,11.90073188]
[1768792535743,0.001,3209.7,3209.5,11.90073188]
[1768792535929,0.001,3209.7,3209.6,0.514]
[1768792537040,0.001,3209.7,3209.6,12.41473188]
[1768792537759,12.09457789,3209.7,3209.6,0.514]
[1768792538061,13.30403568,3209.7,3209.6,0.514]
[1768792538262,13.30403568,3209.7,3209.6,0.43954419]
[1768792540262,1.21045779,3209.7,3209.6,0.43954419]
[1768792541622,0.001,3209.7,3209.6,0.43954419]
[1768792541861,12.20534003,3210.0,3209.6,0.43954419]
[1768792542828,12.20534003,3210.0,3209.7,0.514]
[1768792543460,0.001,3210.7,3209.7,0.514]
[1768792543660,12.20534003,3210.6,3209.7,0.514]
[1768792544159,12.20534003,3210.5,3209.7,0.514]
[1768792544565,12.20534003,3210.3,3209.7,0.514]
[1768792546670,12.20534003,3210.2,3209.7,0.514]
[1768792547562,12.20534003,3210.2,3209.7,12.96174143]
[1768792548546,13.73737141,3210.2,3209.7,12.96174143]
[1768792548774,15.32037104,3210.3,3209.7,12.96174143]
[1768792549366,3.11503101,3210.3,3209.7,12.96174143]
[1768792549675,12.20534003,3210.2,3209.7,12.96174143]
[1768792549854,12.20534003,3210.2,3209.8,0.514]
[1768792550246,12.20534003,3210.2,3209.8,0.44612875]
[1768792550451,12.20534003,3210.0,3209.8,0.44612875]
[1768792550653,0.51399998,3209.9,3209.4,12.44774143]
[1768792550857,0.51399998,3209.9,3209.5,12.96174143]
[1768792552492,12.71934001,3209.9,3209.5,12.96174143]
[1768792553242,12.64271001,3209.8,3209.6,0.4262176]
[1768792553441,13.91464401,3209.8,3209.7,0.514]
[1768792554373,13.91464401,3209.8,3209.7,0.44327413]
[1768792555878,1.271934,3209.8,3209.7,0.44327413]
[1768792556373,1.271934,3209.8,3209.7,0.37254825]
[1768792556575,13.91464401,3209.8,3208.9,12.33805397]
[1768792556785,13.91464401,3209.8,3209.0,12.85205397]
[1768792556786,15.75817432,3209.8,3209.0,12.85205397]
[1768792557150,15.75817432,3209.8,3209.1,12.33805397]
[1768792557770,12.64271001,3209.8,3209.1,12.33805397]
[1768792559381,15.75818544,3209.8,3209.2,12.85205397]
[1768792559560,17.64553111,3209.8,3209.2,12.85205397]
[1768792560970,14.53005568,3209.8,3209.2,12.85205397]
[1768792562279,14.53005568,3209.8,3209.3,12.33805397]
[1768792563389,12.64271001,3209.8,3209.3,12.33805397]
[1768792563884,12.64271001,3210.0,3209.3,12.33805397]
[1768792564071,12.64271001,3210.0,3209.3,15.45397465]
[1768792564274,12.64271001,3210.0,3209.3,12.33805397]
[1768792565682,15.75798054,3210.0,3209.3,3.11591363]
[1768792565894,14.09235746,3210.0,3209.4,12.33805397]
[1768792566687,17.20763169,3210.0,3209.4,12.33805397]
[1768792567107,14.09235746,3210.0,3209.4,12.33805397]
[1768792567256,17.20764675,3210.0,3209.6,0.002]
[1768792567600,17.20764675,3210.0,3209.7,2e-08]
[1768792568188,1.72076467,3209.9,3209.7,2e-08]
[1768792574260,4.83613732,3209.9,3209.7,2e-08]
[1768792575271,1.72076467,3209.9,3209.7,2e-08]
[1768792578098,14.36347468,3209.9,3209.7,2e-08]
[1768792579794,14.36347468,3209.9,3209.7,0.00200002]
[1768792580363,1.72076467,3209.9,3209.7,0.00200002]
[1768792585917,4.83615603,3209.9,3209.7,0.00200002]
[1768792586206,1.67856107,3209.8,3209.7,0.00200002]
[1768792587084,11.94945464,3210.1,3209.7,0.00200002]
[1768792587487,3.11528101,3210.0,3209.7,0.00200002]
[1768792587804,15.06473565,3210.0,3209.7,0.00200002]
[1768792592001,3.11520747,3210.1,3209.7,12.94532851]
[1768792592204,3.11520747,3210.1,3209.8,2e-08]
[1768792592408,1.50646621,3210.0,3209.8,2e-08]
[1768792596027,4.62174362,3210.0,3209.8,2e-08]
[1768792596236,1.50646621,3210.0,3209.8,2e-08]
[1768792597384,4.6217748,3210.0,3209.8,2e-08]
[1768792598020,16.57122944,3210.0,3209.8,2e-08]
[1768792598209,1.65712294,3209.9,3209.8,2e-08]
[1768792602151,4.77248478,3209.9,3209.8,2e-08]
[1768792604072,1.65712294,3209.9,3209.8,2e-08]
[1768792608645,4.77248478,3209.9,3209.8,2e-08]
[1768792609345,12.55584747,3209.8,3209.3,12.24714682]
[1768792609533,14.60021688,3209.7,3209.5,0.514]
[1768792609843,18.78657115,3209.9,3209.5,0.42601119]
[1768792610023,15.67120931,3209.9,3209.5,0.42601119]
[1768792611863,15.67120931,3209.9,3209.3,0.002]
[1768792614837,15.67120931,3209.9,3209.3,12.60652052]
[1768792615839,0.001,3209.6,3209.3,12.60652052]
[1768792638876,0.001,3210.7,3209.6,12.60452052]
[1768792639074,12.09861501,3210.8,3209.9,12.60452052]
[1768792639243,12.09861501,3210.8,3209.4,12.60452052]
[1768792639443,12.05739572,3210.9,3209.7,12.60452052]
[1768792639444,12.09861501,3210.6,3209.7,12.60452052]
[1768792641280,12.09861501,3210.4,3209.7,12.60452052]
[1768792642269,12.09861501,3210.4,3209.7,15.72004209]
[1768792642886,15.31147603,3210.5,3209.7,15.72004209]
[1768792643452,12.19669641,3210.4,3209.7,15.72004209]
[1768792643753,12.19669641,3210.4,3209.9,11.75678729]
[1768792644085,12.19669641,3210.4,3209.9,12.27078729]
[1768792645248,12.19669641,3210.3,3209.9,12.27078729]
[1768792645458,12.19669641,3210.3,3209.9,0.514]
[1768792646086,3.11433033,3211.0,3209.9,0.514]
[1768792646087,3.1132281,3212.1,3210.3,11.75678729]
[1768792646287,12.52423015,3212.0,3210.7,11.75678729]
[1768792646487,12.52423015,3212.0,3210.9,11.75678729]
[1768792647186,12.19669641,3211.8,3211.0,11.75678729]
[1768792647374,12.19669641,3211.8,3210.8,12.27078729]
[1768792647577,6.22684392,3211.9,3209.0,5.82854042]
[1768792647578,12.19669641,3211.5,3210.6,11.75678729]
[1768792647883,12.19669641,3211.3,3210.3,11.75678729]
[1768792649163,12.19669641,3211.1,3210.3,11.75678729]
[1768792651085,3.113693,3211.7,3210.3,11.75678729]
[1768792651086,12.19669641,3212.6,3211.1,11.75678729]
[1768792651400,12.19669641,3212.4,3211.2,11.75678729]
[1768792653294,12.19669641,3212.2,3211.4,11.75678729]
[1768792653497,0.514,3212.1,3211.4,11.75678729]
[1768792653701,2.09637307,3212.1,3211.4,11.75678729]
[1768792654002,12.71069641,3212.1,3211.4,11.75678729]
[1768792655396,3.62730651,3212.1,3211.4,11.75678729]
[1768792655598,12.19669641,3212.0,3211.4,11.75678729]
[1768792656610,12.71069641,3212.1,3211.4,11.75678729]
[1768792656904,12.71069641,3212.1,3211.5,11.75678729]
[1768792657070,1.37502762,3212.0,3211.5,11.75678729]
[1768792657774,1.88902762,3212.0,3211.5,11.75678729]
[1768792657982,0.514,3212.0,3211.5,11.75678729]
[1768792658577,12.35793978,3212.5,3211.6,11.79427041]
[1768792658771,12.87193978,3212.4,3211.6,11.79427041]
[1768792658972,12.87193978,3212.4,3211.6,11.14814507]
[1768792659199,14.26770543,3212.3,3211.6,11.14814507]
[1768792659901,3.11313118,3212.2,3211.6,11.14814507]
[1768792660201,15.47107096,3212.2,3211.6,11.14814507]
[1768792661818,12.35793978,3212.1,3211.6,11.14814507]
[1768792662019,0.001,3211.9,3211.6,11.14814507]
[1768792663920,12.35893978,3211.9,3211.4,11.79427041]
[1768792664215,14.88102774,3211.8,3211.2,11.79427041]
[1768792665003,14.88102774,3211.8,3211.3,11.79427041]
[1768792665211,12.35793978,3211.8,3211.3,11.79427041]
[1768792665723,0.001,3211.9,3211.4,11.79427041]
[1768792666027,0.514,3211.8,3211.4,11.79427041]
[1768792673506,0.515,3211.8,3211.4,11.79427041]
[1768792674899,0.514,3211.7,3211.4,11.79427041]
[1768792675103,0.514,3211.7,3211.4,11.76375763]
[1768792675592,0.514,3211.7,3211.4,11.75142865]
[1768792680216,11.7331403,3211.6,3211.0,11.83984356]
[1768792680611,0.514,3211.5,3211.0,11.83984356]
[1768792681496,0.514,3211.5,3211.1,11.83984356]
[1768792682425,11.7331403,3211.6,3211.1,11.83984356]
[1768792682634,0.514,3211.5,3211.1,11.83984356]
[1768792683430,13.7832191,3211.5,3210.6,11.83984356]
[1768792683633,13.7832191,3211.5,3210.8,11.83984356]
[1768792684299,13.7832191,3211.5,3210.8,3.11448728]
[1768792684504,13.7832191,3211.5,3210.9,11.83984356]
[1768792685445,13.7832191,3211.5,3211.4,0.002]
[1768792687530,16.89702884,3211.5,3211.4,0.002]
[1768792688152,13.7832191,3211.5,3211.4,0.002]
[1768792688646,16.89702884,3211.5,3211.4,0.002]
[1768792691239,13.7832191,3211.5,3211.4,0.002]
[1768792691950,3.11454991,3211.8,3211.4,0.002]
[1768792692150,0.001,3211.8,3211.4,11.84184356]
[1768792692449,0.514,3211.7,3211.4,11.84184356]
[1768792693460,0.514,3211.7,3211.4,0.002]
[1768792693461,12.2471403,3211.7,3211.4,0.002]
[1768792693658,12.95795433,3211.6,3211.4,0.002]
[1768792695659,1.22481403,3211.6,3211.4,0.002]
[1768792695865,11.7331403,3211.6,3211.4,0.002]
[1768792696160,11.7331403,3211.5,3211.0,0.002]
[1768792696862,0.514,3211.4,3211.0,9.79584359]
[1768792697163,0.514,3211.4,3211.0,8.30984357]
[1768792697370,0.514,3211.4,3211.0,7.68221764]
[1768792697543,0.514,3211.4,3211.0,7.61535427]
[1768792700176,12.2471403,3211.4,3211.0,7.61535427]
[1768792700379,13.7832368,3211.4,3211.0,7.61535427]
[1768792700589,16.89714543,3211.4,3211.0,7.61535427]
[1768792700978,13.7832368,3211.4,3211.0,7.61535427]
[1768792701476,11.7331403,3211.3,3210.3,11.83984356]
[1768792701674,11.7331403,3211.1,3210.4,11.83984356]
[1768792702366,0.514,3211.0,3210.4,11.83984356]
[1768792702779,13.48253692,3211.0,3210.4,11.83984356]
[1768792702955,13.48253692,3211.0,3210.2,12.63382689]
[1768792702956,12.96853692,3210.9,3210.2,12.63382689]
[1768792703618,12.96853692,3210.9,3210.4,12.63382689]
[1768792703776,0.514,3210.8,3210.4,12.63382689]
[1768792706278,16.08293324,3210.9,3210.4,12.63382689]
[1768792706489,0.514,3210.8,3210.4,12.63382689]
[1768792709366,0.514,3210.8,3210.7,0.002]
[1768792709563,1.57586477,3210.8,3210.7,0.002]
[1768792710278,0.514,3210.8,3210.7,0.002]
[1768792710514,12.96853692,3211.1,3210.7,0.002]
[1768792710691,0.514,3210.8,3210.7,0.002]
[1768792711199,0.42962731,3210.8,3210.7,0.002]
[1768792711628,3.11404485,3211.3,3210.7,12.63582689]
[1768792711795,0.514,3211.2,3210.7,12.63582689]
[1768792712118,0.514,3211.1,3210.7,12.63582689]
[1768792713718,12.96853692,3211.2,3210.7,12.63582689]
[1768792713883,0.514,3211.1,3210.7,12.63582689]
[1768792716607,3.62819846,3211.1,3210.7,12.63582689]
[1768792716802,0.514,3211.1,3210.7,12.63582689]
[1768792719200,16.08270871,3211.2,3210.7,12.63582689]
[1768792719412,0.514,3211.1,3210.7,12.63582689]
[1768792721428,0.001,3210.9,3210.7,12.63582689]
[1768792721937,1.52216877,3213.9,3210.7,12.63582689]
[1768792721938,12.50021176,3211.4,3210.8,12.44666496]
[1768792722111,12.50021176,3211.7,3210.9,12.44666496]
[1768792722431,0.514,3211.6,3210.9,12.44666496]
[1768792722729,0.514,3211.6,3210.8,5.82164225]
[1768792722730,0.514,3211.6,3211.1,12.44666496]
[1768792722930,12.50021176,3211.7,3211.1,12.44666496]
[1768792723158,0.514,3211.6,3211.1,12.44666496]
[1768792723319,0.514,3211.6,3211.2,3.11410064]
[1768792723519,0.514,3211.6,3211.3,12.44666496]
[1768792726763,12.50121176,3211.8,3211.3,12.44666496]
[1768792726960,0.514,3211.7,3211.3,12.44666496]
[1768792727128,0.001,3211.8,3211.3,12.44666496]
[1768792727330,0.515,3211.8,3211.3,12.44666496]
[1768792728865,13.01521176,3211.8,3211.3,12.44666496]
[1768792729044,14.62807792,3211.8,3211.3,12.44666496]
[1768792734173,0.001,3211.5,3211.3,12.44666496]
[1768792736381,0.001,3211.5,3210.8,5.82164225]
[1768792736382,12.42063526,3211.5,3210.8,12.46005226]
[1768792736558,12.41963526,3211.3,3210.8,12.46005226]
[1768792739484,12.41963526,3211.3,3210.7,0.002]
[1768792739485,12.41963526,3211.2,3210.7,0.002]
[1768792739875,12.41963526,3211.2,3210.7,12.46205226]
[1768792740684,12.41963526,3211.2,3210.7,0.002]
[1768792743370,12.41963526,3211.2,3210.4,0.516]
[1768792743371,12.41963526,3211.1,3210.4,0.002]
[1768792743576,12.41963526,3210.6,3209.8,12.46205226]
[1768792743756,6.2291712,3210.7,3209.8,12.46205226]
[1768792743757,12.41963526,3210.4,3209.8,12.46205226]
[1768792743962,12.41963526,3210.4,3209.9,12.46005226]
[1768792744872,12.41963526,3210.4,3209.8,0.002]
[1768792745073,12.41963526,3210.4,3209.6,0.002]
[1768792745797,12.41963526,3210.2,3209.6,0.002]
[1768792746104,12.41963526,3210.0,3209.6,0.002]
[1768792749970,12.41963526,3210.0,3209.3,0.002]
[1768792750293,12.41963526,3209.9,3209.3,0.002]
[1768792753194,15.53509416,3209.8,3209.3,0.002]
[1768792753503,12.41963526,3209.7,3209.3,0.002]
[1768792755485,15.53527895,3209.7,3209.3,0.002]
[1768792755799,12.41963526,3209.7,3209.3,0.002]
[1768792756216,12.41963526,3209.7,3209.3,12.46205226]
[1768792756392,12.93363526,3209.9,3209.3,12.37123303]
[1768792757511,12.93363526,3209.9,3209.3,12.2804138]
[1768792757721,15.53502448,3209.9,3209.3,12.2804138]
[1768792758289,15.53502448,3209.9,3209.6,0.002]
[1768792758500,15.53502448,3209.9,3209.4,12.46005226]
[1768792758702,17.45145287,3209.9,3209.4,12.46005226]
[1768792761424,17.45145287,3209.9,3209.4,12.36923586]
[1768792761625,17.45145287,3209.9,3209.4,11.44523586]
[1768792762337,14.33606365,3209.9,3209.4,11.44523586]
[1768792762735,17.45147731,3209.9,3209.4,11.44523586]
[1768792763036,0.64138687,3209.8,3209.4,10.89241946]
[1768792763334,0.64138687,3209.8,3209.4,10.80160306]
[1768792764430,0.64138687,3209.8,3209.4,10.71078665]
[1768792764613,3.75684591,3209.8,3209.4,10.71078665]
[1768792765606,15.59382576,3209.8,3209.4,10.71078665]
[1768792765905,15.59382576,3209.8,3209.3,0.002]
[1768792765906,15.59382576,3209.8,3209.3,11.88757441]
[1768792766937,11.83697985,3209.7,3209.3,11.88757441]
[1768792770743,0.001,3209.6,3209.3,11.88757441]
[1768792776248,11.83797985,3209.6,3209.3,0.002]
[1768792782636,0.001,3209.6,3209.3,0.002]
[1768792783658,15.69190244,3209.6,3209.3,0.002]
[1768792784018,12.57622609,3209.6,3209.3,0.002]
[1768792785451,0.001,3209.6,3209.3,0.002]
[1768792785854,0.001,3209.6,3209.3,12.70775406]
[1768792786024,0.001,3209.6,3209.3,12.61693481]
[1768792786424,0.001,3209.6,3209.3,12.52611556]
[1768792787553,0.001,3209.6,3209.3,12.4352963]
[1768792788560,12.57522609,3210.2,3209.4,12.70575406]
[1768792792737,12.57522609,3210.2,3209.6,12.88360445]
[1768792792934,12.88296108,3210.4,3209.6,12.88360445]
[1768792793232,12.36896108,3210.3,3209.6,14.79511492]
[1768792794043,0.001,3209.9,3209.6,14.79511492]
[1768792795058,0.001,3209.9,3209.7,15.99916042]
[1768792795450,0.001,3209.9,3209.7,12.88360445]
[1768792797064,0.001,3209.9,3209.8,12.88360445]
[1768792798187,0.001,3209.9,3209.7,1.25635662]
[1768792798371,0.001,3209.9,3209.7,12.88360445]
[1768792799440,0.001,3209.9,3209.7,15.9991353]
[1768792799642,12.88296108,3210.4,3209.7,15.9991353]
[1768792801190,12.88296108,3210.4,3209.6,8.94275222]
[1768792801191,12.36896108,3210.4,3209.6,3.11559104]
[1768792801549,3.11489403,3210.4,3209.6,15.99919549]
[1768792801748,12.36896108,3210.3,3209.6,15.99919549]
[1768792801987,12.36896108,3210.3,3209.6,3.11559104]
[1768792802197,5.82715639,3210.3,3209.4,0.514]
[1768792802383,12.36896108,3209.9,3209.4,0.514]
[1768792802688,12.36896108,3209.9,3209.1,0.516]
[1768792803597,12.36896108,3209.7,3209.1,0.002]
[1768792805195,12.36896108,3209.6,3208.4,0.002]
[1768792805486,12.36896108,3209.6,3208.5,3.1167212]
[1768792805487,3.11575011,3209.5,3208.5,3.1167212]
[1768792805782,12.88296108,3209.4,3208.5,3.1167212]
[1768792806469,12.88296108,3209.4,3209.0,0.002]
[1768792806660,12.36896108,3209.2,3209.0,0.002]
[1768792807585,12.36896108,3209.2,3208.4,12.88560445]
[1768792807791,12.36896108,3209.0,3208.4,0.002]
[1768792808956,12.36896108,3208.7,3208.1,0.002]
[1768792809688,12.36896108,3208.5,3208.1,0.002]
[1768792810564,3.1154589,3209.8,3208.1,12.88560445]
[1768792810765,12.88296108,3209.7,3208.2,12.88360445]
[1768792810965,12.36896108,3209.5,3208.2,13.39760445]
[1768792812091,12.36896108,3209.3,3208.3,3.1169155]
[1768792812275,6.23169438,3209.4,3208.3,16.00051995]
[1768792812276,12.36896108,3209.1,3208.3,16.00051995]
[1768792812480,12.36896108,3209.1,3208.2,0.514]
[1768792812481,12.88296108,3209.1,3208.2,0.514]
[1768792812788,12.88296108,3209.1,3208.3,12.88360445]
[1768792812987,12.36896108,3209.1,3208.4,14.84676552]
[1768792813500,12.36896108,3209.1,3208.2,0.514]
[1768792813795,12.36896108,3209.0,3208.2,0.514]
[1768792814160,12.36896108,3208.8,3208.2,0.514]
[1768792814354,12.36896108,3208.8,3208.1,0.002]
[1768792814784,0.514,3208.7,3208.1,0.002]
[1768792814984,12.36896108,3208.6,3208.1,0.002]
[1768792815188,13.65725719,3208.6,3208.1,0.002]
[1768792816463,12.36896108,3208.4,3208.1,0.002]
[1768792825513,12.36896108,3208.4,3208.0,0.002]
[1768792825514,12.92386699,3208.3,3208.0,0.002]
[1768792828626,12.92386699,3208.5,3208.0,11.79244696]
[1768792829034,0.515,3208.5,3208.0,11.79244696]
[1768792829220,12.92386699,3208.7,3208.0,11.79244696]
[1768792829221,13.43886699,3208.6,3208.0,11.79244696]
[1768792830409,13.43886699,3208.6,3208.3,0.002]
[1768792830636,13.43886699,3208.6,3208.0,11.79244696]
[1768792830941,0.001,3208.3,3208.0,14.90963879]
[1768792831742,0.001,3208.3,3208.0,11.79244696]
[1768792833338,12.92386699,3208.2,3208.0,0.002]
[1768792833636,12.92486699,3208.3,3208.0,0.002]
[1768792840548,0.001,3208.3,3208.0,12.69244313]
[1768792848952,0.001,3208.3,3208.0,0.002]
[1768792850350,0.001,3208.3,3208.0,3.11920484]
[1768792850550,0.001,3208.3,3208.0,0.002]
[1768792850753,0.001,3208.3,3208.0,12.69244313]
[1768792852954,0.001,3208.3,3208.0,15.80963957]
[1768792853161,0.001,3208.3,3208.0,12.69244313]
[1768792853377,0.001,3208.3,3208.0,15.80964977]
[1768792853754,0.001,3208.3,3208.0,12.69244313]
[1768792853965,0.001,3208.3,3208.0,15.80964738]
[1768792854138,15.71755055,3209.4,3208.4,12.20317148]
[1768792854454,12.60170336,3209.1,3208.4,12.20317148]
[1768792855789,12.60170336,3209.1,3208.5,12.20317148]
[1768792856062,0.128,3210.2,3208.7,12.20317148]
[1768792856063,12.60170336,3209.6,3208.7,12.20317148]
[1768792856356,13.11670336,3209.6,3208.7,12.20317148]
[1768792856531,12.60170336,3209.6,3208.7,12.71717148]
[1768792857474,12.60170336,3209.6,3209.0,12.20317148]
[1768792858151,12.60170336,3209.6,3209.1,3.11613848]
[1768792858356,12.60270336,3209.9,3209.2,12.20317148]
[1768792859543,15.71808515,3209.9,3209.2,12.20317148]
[1768792860566,15.71808515,3209.9,3208.4,12.20317148]
[1768792860567,12.60170336,3209.7,3208.4,12.20317148]
[1768792860755,5.8333021,3209.8,3208.5,3.11665473]
[1768792860756,12.60170336,3209.5,3208.5,3.11665473]
[1768792860934,12.60170336,3209.5,3208.5,15.31982621]
[1768792861137,12.60170336,3209.5,3208.6,3.11661497]
[1768792861369,0.515,3209.6,3208.6,3.11661497]
[1768792861370,12.60170336,3209.3,3208.6,3.11661497]
[1768792861664,12.60170336,3209.3,3208.4,0.514]
[1768792861963,12.60170336,3209.1,3208.4,0.514]
[1768792862463,12.60170336,3209.1,3208.5,12.20317148]
[1768792862668,4.42755353,3209.4,3208.5,12.20317148]
[1768792862669,0.514,3209.4,3208.5,12.20317148]
[1768792862839,13.11570336,3209.4,3208.5,12.20317148]
[1768792863042,14.4272737,3209.4,3208.5,12.20317148]
[1768792864563,12.60170336,3209.2,3208.5,12.20317148]
[1768792865337,12.60170336,3209.2,3208.4,3.6307834]
[1768792865338,12.60170336,3209.2,3208.4,0.514]
[1768792865570,12.60170336,3209.2,3208.4,12.71717148]
[1768792865967,12.60170336,3209.2,3208.4,0.514]
[1768792866176,12.60170336,3209.2,3208.3,0.002]
[1768792866178,14.48506255,3209.1,3208.3,0.002]
[1768792866675,12.60170336,3208.9,3208.3,0.002]
[1768792869054,12.60170336,3208.7,3208.3,0.002]
[1768792871380,12.60170336,3208.5,3208.3,0.002]
[1768792873058,0.514,3209.0,3208.3,0.002]
[1768792873059,14.48606255,3209.1,3208.3,12.20517148]
[1768792873259,0.001,3209.1,3208.3,12.20517148]
[1768792873459,0.001,3209.1,3208.4,12.20317148]
[1768792874997,12.60270336,3209.1,3208.4,12.20317148]
[1768792876685,15.71887298,3209.1,3208.4,12.20317148]
[1768792877891,12.60170336,3209.0,3208.3,0.002]
[1768792878496,12.60170336,3208.7,3208.3,0.002]
[1768792879274,0.001,3208.8,3208.4,18.43678689]
[1768792879489,0.001,3208.8,3208.5,14.04705017]
[1768792879797,0.001,3208.8,3208.6,12.20317148]
[1768792882192,0.001,3208.8,3208.7,12.20317148]
[1768792882394,0.001,3209.1,3208.7,12.20317148]
[1768792884269,0.001,3209.1,3208.7,15.31965913]
[1768792884675,0.001,3209.1,3208.7,12.20317148]
[1768792884886,0.001,3209.1,3208.7,13.52715988]
[1768792886606,0.001,3209.1,3208.7,16.79205392]
[1768792887371,0.001,3209.1,3208.8,12.35154172]
[1768792888789,0.001,3209.1,3208.9,12.35154172]
[1768792890792,12.14748381,3209.1,3208.7,0.514]
[1768792892679,13.36223219,3209.1,3208.7,0.514]
[1768792892989,12.14648381,3209.0,3208.7,0.514]
[1768792893779,12.14648381,3209.0,3208.4,0.514]
[1768792894415,12.14648381,3209.0,3208.4,3.63078534]
[1768792894782,12.14648381,3209.0,3208.5,3.1167176]
[1768792895404,12.14648381,3209.0,3208.4,15.98233452]
[1768792897814,0.001,3209.1,3208.5,12.35154172]
[1768792897984,12.14748381,3209.1,3208.5,14.26165701]
[1768792898183,12.14748381,3209.1,3208.5,12.35154172]
[1768792899727,12.83463686,3209.0,3208.5,12.35154172]
[1768792900832,12.83463686,3209.0,3208.4,0.514]
[1768792901301,12.83463686,3209.0,3208.4,13.40076589]
[1768792902189,12.83463686,3209.0,3208.4,16.51756837]
[1768792902417,12.83463686,3209.0,3208.7,0.002]
[1768792904418,12.83463686,3208.9,3208.7,0.002]
[1768792905623,12.83463686,3208.9,3208.3,0.002]
[1768792907546,12.83463686,3208.7,3208.3,0.002]
[1768792909198,12.83463686,3208.7,3208.0,0.002]
[1768792909530,12.57656954,3208.8,3207.8,0.002]
[1768792909531,12.83463686,3208.2,3207.8,0.002]
[1768792909726,12.83463686,3208.0,3207.8,0.002]
[1768792910923,1.59515524,3208.1,3207.8,0.002]
[1768792911099,12.83463686,3208.2,3207.8,0.002]
[1768792911845,15.95166768,3208.2,3207.8,0.002]
[1768792912216,12.83463686,3208.4,3207.8,0.002]
[1768792914618,11.96885453,3208.2,3207.8,0.002]
[1768792916606,15.08588877,3208.2,3207.8,0.002]
[1768792916832,11.96885453,3208.2,3207.8,0.002]
[1768792917027,11.96885453,3208.5,3207.8,12.87185939]
[1768792917309,15.08559353,3208.5,3207.8,12.87185939]
[1768792917510,11.96885453,3208.4,3207.8,12.87185939]
[1768792917934,11.96885453,3208.8,3207.8,12.87185939]
[1768792918144,16.68028193,3209.0,3208.0,12.86985939]
[1768792918307,11.96885453,3208.9,3208.0,13.38385939]
[1768792918511,15.08518784,3208.9,3208.2,12.86985939]
[1768792919033,11.96885453,3208.9,3208.2,12.86985939]
[1768792919606,11.96885453,3208.8,3208.2,12.86985939]
[1768792920509,15.08525241,3208.9,3208.2,12.86985939]
[1768792921233,11.96885453,3208.8,3208.2,12.86985939]
[1768792923531,11.96885453,3208.7,3208.2,12.86985939]
[1768792925750,3.11653204,3208.7,3208.2,12.86985939]
[1768792925937,11.96885453,3208.6,3208.2,12.86985939]
[1768792926237,11.96885453,3208.6,3208.0,0.514]
[1768792926238,12.99109068,3208.6,3208.0,0.514]
[1768792926443,12.99109068,3208.6,3207.8,12.87185939]
[1768792926444,11.96885453,3208.4,3207.8,0.002]
[1768792926814,11.96885453,3208.2,3207.8,0.002]
[1768792927430,13.78911629,3208.2,3207.8,0.002]
[1768792928646,11.96885453,3207.8,3207.2,0.002]
[1768792928846,11.96885453,3207.6,3207.1,0.002]
[1768792929022,1.82038515,3207.5,3207.0,0.514]
[1768792929346,11.96885453,3207.6,3207.1,12.86985939]
[1768792931016,15.08654743,3207.5,3207.0,13.26894596]
[1768792932210,11.96885453,3207.5,3207.0,13.26894596]
[1768792932434,11.96885453,3207.5,3207.0,12.86985939]
[1768792933447,15.08655554,3207.5,3207.0,12.86985939]
[1768792934253,16.90696144,3207.5,3207.0,12.86985939]
[1768792934420,13.78926043,3207.5,3207.0,12.86985939]
[1768792934748,16.90695486,3207.5,3207.0,12.86985939]
[1768792934945,16.90697452,3207.5,3207.0,12.86985939]
[1768792935246,13.78926043,3207.5,3207.0,12.86985939]
[1768792935629,16.90696295,3207.5,3207.0,12.86985939]
[1768792936351,13.78926043,3207.5,3207.0,12.86985939]
[1768792938015,13.78926043,3207.5,3207.3,0.002]
[1768792938217,1.37892604,3207.4,3207.0,12.86985939]
[1768792938416,11.96885453,3207.5,3207.0,12.87185939]
[1768792940672,15.08655447,3207.5,3207.0,12.87185939]
[1768792941853,11.96885453,3207.5,3207.0,12.87185939]
[1768792942047,15.08656549,3207.5,3207.0,12.87185939]
[1768792942622,12.77586619,3207.4,3207.0,0.002]
[1768792942845,13.62661144,3207.3,3207.0,0.002]